bitfinex/quotes_ETHUSD_20260202
["timestamp","ask_amount","ask_price","bid_price","bid_amount"]
[1769992543415,1.07817851,2318.8,2317.6,0.01342642]
[1769992543656,0.0011,2319.5,2317.6,0.01342642]
[1769992543657,0.904,2318.7,2318.0,0.01342642]
[1769992543815,0.904,2318.7,2318.3,0.01342642]
[1769992544475,4.31204642,2319.1,2318.4,0.01342642]
[1769992544476,0.904,2319.1,2318.4,0.01342642]
[1769992544812,0.0011,2319.5,2318.7,0.01342642]
[1769992544924,0.0011,2319.7,2319.2,0.01342642]
[1769992545130,1.98140085,2320.4,2319.6,0.01342642]
[1769992545319,1.07839954,2320.7,2319.7,0.01342642]
[1769992545514,0.0011,2320.7,2320.1,0.01342642]
[1769992545718,0.30667535,2321.4,2320.1,0.01342642]
[1769992545719,1.07701599,2321.3,2320.4,0.01342642]
[1769992545926,0.904,2321.2,2319.3,0.01342642]
[1769992546149,0.904,2321.2,2319.1,0.01342642]
[1769992546150,2.051757,2321.1,2319.1,0.01342642]
[1769992546349,0.1024,2320.9,2319.2,1.07795791]
[1769992546539,2.416241,2320.8,2319.2,1.07795791]
[1769992546849,0.1024,2320.6,2318.9,0.01342642]
[1769992547020,0.1024,2320.2,2318.0,4.3273596]
[1769992547220,3.11710542,2320.1,2318.6,1.07823567]
[1769992547522,0.11582642,2319.9,2318.0,1.07850363]
[1769992547719,0.11582642,2319.9,2317.7,0.01342642]
[1769992547720,0.1024,2319.7,2318.4,1.07832976]
[1769992547920,0.1024,2319.7,2318.6,1.07823356]
[1769992548119,0.904,2320.1,2318.5,0.01342642]
[1769992548352,1.0775862,2320.0,2318.5,1.07825743]
[1769992548661,1.0775862,2320.0,2318.6,1.07822099]
[1769992548835,1.0775862,2320.0,2318.7,1.07815323]
[1769992549150,0.6291931,2319.9,2318.5,1.07827483]
[1769992549466,0.6291931,2319.9,2318.3,1.07834595]
[1769992549818,11.255067,2319.8,2317.8,13.35691208]
[1769992550028,0.1024,2319.6,2318.1,1.07846622]
[1769992550249,0.1024,2319.6,2318.2,1.07839748]
[1769992550457,1.07781849,2319.5,2318.2,0.53922886]
[1769992550629,1.07781849,2319.5,2317.8,4.32767638]
[1769992550630,1.07781849,2319.5,2317.8,1.07859252]
[1769992550949,8.647378,2319.4,2317.8,1.07859252]
[1769992551148,7.65703,2319.4,2317.8,1.07859252]
[1769992551347,1.09124491,2319.5,2317.8,1.07859252]
[1769992551564,1.09124491,2319.5,2317.9,0.01342642]
[1769992551565,1.07781849,2319.5,2317.9,0.01342642]
[1769992551751,0.54914925,2319.4,2318.0,0.01342642]
[1769992552537,1.98191143,2319.3,2318.2,0.01342642]
[1769992553059,0.904,2319.3,2318.5,0.01342642]
[1769992553264,0.904,2319.3,2318.1,1.09189585]
[1769992553464,0.904,2319.3,2318.4,0.01342642]
[1769992553624,0.904,2319.3,2318.1,1.07846943]
[1769992553819,0.904,2319.3,2318.2,0.54058953]
[1769992554346,0.904,2319.3,2318.2,0.55401595]
[1769992554552,4.93988413,2319.9,2318.4,0.01342642]
[1769992554750,1.98167911,2319.8,2318.6,0.01342642]
[1769992555053,8.515599,2319.7,2318.2,0.54058953]
[1769992555377,0.1024,2319.5,2317.9,0.54200542]
[1769992555526,0.1024,2319.3,2317.7,1.07862741]
[1769992555726,0.1024,2319.1,2317.5,1.07872587]
[1769992556069,4.647143,2319.0,2317.2,0.01342642]
[1769992556351,0.904,2318.9,2318.1,1.07846509]
[1769992556551,0.904,2318.9,2318.0,1.09194238]
[1769992556853,0.904,2319.1,2318.1,0.55536968]
[1769992557065,0.904,2319.1,2317.7,4.32749026]
[1769992557066,7.906439,2319.0,2317.4,1.07879226]
[1769992557231,0.1024,2319.0,2317.7,1.07861684]
[1769992557451,13.71847901,2319.3,2317.2,0.01342642]
[1769992557693,0.904,2319.2,2317.9,1.07855916]
[1769992557851,0.1024,2319.5,2317.9,1.07855916]
[1769992558056,0.1024,2319.3,2318.0,0.5392962]
[1769992558252,0.1024,2319.3,2317.7,0.01342642]
[1769992558577,1.07791143,2319.3,2318.0,0.01342642]
[1769992559262,1.07791143,2319.3,2317.9,1.07854749]
[1769992559461,1.07791143,2319.3,2317.9,1.09197391]
[1769992559664,18.02919238,2319.9,2318.3,0.01342642]
[1769992559665,4.31069246,2319.9,2318.3,0.01342642]
[1769992559856,3.24170622,2319.8,2318.1,0.01342642]
[1769992560056,0.904,2319.8,2318.4,0.01342642]
[1769992560567,0.904,2319.8,2318.3,0.01342642]
[1769992560771,1.07772556,2319.7,2318.4,1.07832988]
[1769992560977,1.07772556,2319.7,2318.2,4.32687458]
[1769992560978,10.294586,2319.6,2318.1,1.07846704]
[1769992561180,1.07772556,2319.7,2318.3,1.07834217]
[1769992561359,1.53326278,2319.6,2318.4,0.53920151]
[1769992561557,4.31090227,2319.8,2318.4,0.53920151]
[1769992561558,0.904,2319.8,2318.8,0.01342642]
[1769992561762,0.904,2319.8,2318.5,0.01342642]
[1769992562067,0.904,2319.8,2318.8,0.01342642]
[1769992562269,0.904,2319.8,2319.0,0.01342642]
[1769992562473,0.904,2319.8,2318.6,13.35691208]
[1769992562474,0.904,2319.8,2318.4,0.53920151]
[1769992562672,1.07772556,2319.7,2318.5,1.07828337]
[1769992562883,0.62926278,2319.6,2317.9,0.01342642]
[1769992563096,0.6426892,2319.6,2318.2,1.07837964]
[1769992563270,0.6426892,2319.6,2317.8,0.001]
[1769992563486,0.62926278,2319.6,2318.4,1.07830403]
[1769992563677,0.904,2319.5,2318.4,1.07830403]
[1769992564071,0.904,2319.4,2318.5,0.01342642]
[1769992564267,0.904,2319.4,2318.6,0.01342642]
[1769992564465,4.30978186,2320.4,2318.8,0.01342642]
[1769992564685,0.0011,2320.5,2319.1,1.07800439]
[1769992564889,0.0011,2320.5,2319.5,0.01342642]
[1769992565089,0.0011,2320.5,2319.2,0.01342642]
[1769992565377,0.53986763,2320.5,2319.2,0.54303012]
[1769992565581,0.53986763,2320.5,2319.0,1.07802625]
[1769992565799,0.01342642,2320.3,2318.4,0.01342642]
[1769992565996,0.01342642,2320.4,2318.8,4.31253638]
[1769992566163,2.369261,2320.3,2318.4,0.01342642]
[1769992566368,0.01342642,2319.9,2317.9,0.01342642]
[1769992566607,0.01342642,2319.5,2317.8,0.001]
[1769992566790,1.07791143,2319.3,2317.8,0.001]
[1769992566975,0.53895572,2319.2,2317.8,0.001]
[1769992567306,0.01342642,2319.0,2317.8,0.001]
[1769992567615,0.01342642,2319.0,2317.5,0.001]
[1769992567616,0.01342642,2318.6,2317.5,0.001]
[1769992567771,0.11582642,2318.8,2317.2,1.07885935]
[1769992568107,0.01342642,2318.6,2317.1,1.07890979]
[1769992568316,0.904,2318.5,2317.1,4.31559202]
[1769992568513,0.904,2318.5,2316.6,0.01342642]
[1769992568799,1.98229142,2318.5,2317.2,0.01342642]
[1769992568973,1.98229142,2318.5,2317.0,1.09240786]
[1769992569478,1.07800439,2319.1,2317.7,0.01342642]
[1769992569782,2.57489585,2319.1,2317.7,0.01342642]
[1769992569984,1.49689146,2319.1,2317.7,0.01342642]
[1769992570202,0.904,2319.1,2317.9,0.01342642]
[1769992570502,0.904,2319.4,2318.3,0.01342642]
[1769992570668,0.904,2319.4,2318.4,0.01342642]
[1769992570870,1.07753976,2320.1,2318.5,1.09170979]
[1769992571070,1.07753976,2320.1,2318.7,0.01342642]
[1769992571071,0.904,2319.7,2318.7,0.01342642]
[1769992571293,1.07752061,2320.2,2318.9,0.01342642]
[1769992571594,0.904,2320.1,2318.9,0.01342642]
[1769992571768,0.904,2320.1,2319.0,0.01342642]
[1769992571971,0.904,2320.1,2318.6,0.54182697]
[1769992572180,1.53314939,2320.1,2318.6,0.54182697]
[1769992572879,2.61071454,2320.1,2318.7,1.07819036]
[1769992573272,13.32048367,2320.0,2317.8,0.01342642]
[1769992573570,13.32048367,2320.0,2318.6,1.07822242]
[1769992573770,2.62414096,2320.1,2318.6,1.07822242]
[1769992573771,1.70671454,2320.1,2318.6,1.07822242]
[1769992573976,0.904,2320.0,2318.9,0.01342642]
[1769992574171,0.904,2320.0,2318.7,0.53913201]
[1769992574397,0.904,2320.0,2318.7,0.55255843]
[1769992574725,0.904,2320.0,2318.7,0.53913201]
[1769992575000,1.07763265,2319.9,2318.6,1.07823303]
[1769992575202,1.07763265,2319.9,2318.6,1.07822548]
[1769992575373,1.07763265,2319.9,2318.7,1.07818125]
[1769992575568,0.0011,2320.5,2318.9,0.01342642]
[1769992575770,1.07846178,2320.5,2319.2,0.01342642]
[1769992575994,1.07846178,2320.5,2319.0,0.01342642]
[1769992576270,0.0011,2320.3,2319.3,0.01342642]
[1769992576482,0.0011,2320.3,2319.4,0.01342642]
[1769992576899,0.0011,2320.3,2319.5,1.07781849]
[1769992577201,0.0011,2320.3,2318.8,12.87005672]
[1769992577501,0.0011,2320.3,2318.8,1.07813736]
[1769992577675,0.0011,2320.3,2319.0,1.07801341]
[1769992578003,0.0011,2320.3,2318.9,4.3123588]
[1769992578167,0.0011,2320.3,2318.8,1.07811261]
[1769992578366,3.307858,2320.2,2318.2,0.01342642]
[1769992578607,1.65404681,2320.1,2319.0,1.07802842]
[1769992578791,1.65404681,2320.1,2318.9,1.07807153]
[1769992579286,1.0775862,2320.0,2318.6,1.07823686]
[1769992579476,1.0775862,2320.0,2318.5,1.09167552]
[1769992579680,1.0775862,2320.0,2318.5,1.0782491]
[1769992579907,0.1024,2319.8,2318.0,0.01342642]
[1769992580109,0.01342642,2319.1,2317.8,1.07857793]
[1769992580308,0.01342642,2319.3,2318.2,1.07841853]
[1769992580612,0.904,2319.2,2318.4,1.07829937]
[1769992580815,0.904,2319.2,2318.2,1.07840037]
[1769992581016,0.904,2319.2,2317.8,1.07859748]
[1769992581217,0.01342642,2318.9,2317.8,0.53943742]
[1769992581511,0.01342642,2318.7,2317.7,0.001]
[1769992581708,0.01342642,2318.8,2317.7,0.001]
[1769992582012,1.0914773,2319.0,2317.7,0.001]
[1769992582310,1.07805088,2319.0,2317.7,0.001]
[1769992582694,4.31220353,2319.1,2317.7,0.001]
[1769992582695,1.07803049,2319.1,2317.7,0.001]
[1769992582891,0.01342642,2319.6,2317.9,0.01342642]
[1769992582892,0.904,2319.5,2317.9,0.01342642]
[1769992583102,0.904,2319.5,2318.3,1.09180281]
[1769992583308,1.65404681,2320.1,2318.3,1.09180281]
[1769992583309,1.65404681,2320.1,2318.5,0.01342642]
[1769992583508,0.0011,2320.3,2318.8,0.01342642]
[1769992583717,1.07856012,2320.3,2318.6,12.88348314]
[1769992584019,1.09198654,2320.3,2318.6,12.88348314]
[1769992584216,1.07856012,2320.3,2318.6,12.88348314]
[1769992584403,2.15499534,2320.3,2318.7,1.28969096]
[1769992584787,2.15499534,2320.3,2318.5,0.01342642]
[1769992585094,1.0775862,2320.0,2318.5,1.07828337]
[1769992585295,1.09101262,2320.0,2318.5,1.07828337]
[1769992585500,1.0775862,2320.0,2318.5,1.07828337]
[1769992585940,1.09101262,2320.0,2318.5,1.07828337]
[1769992586106,1.07751958,2320.2,2318.6,13.40919841]
[1769992586295,0.9051,2320.3,2318.9,0.01342642]
[1769992586612,1.98254952,2320.3,2318.9,0.01342642]
[1769992586820,1.98254952,2320.3,2318.7,12.87005672]
[1769992586992,3.04286641,2320.3,2318.8,1.34226248]
[1769992587191,0.01342642,2320.2,2318.9,1.07809737]
[1769992587491,0.01342642,2320.0,2318.8,1.34226248]
[1769992587695,0.01342642,2320.1,2318.8,1.07813408]
[1769992587907,3.05629283,2320.3,2318.8,1.07813408]
[1769992588134,0.01342642,2320.1,2318.8,1.07813408]
[1769992588338,3.04286641,2320.3,2318.8,1.0781431]
[1769992588650,3.04286641,2320.3,2318.3,1.07833939]
[1769992588651,0.01342642,2319.7,2318.3,1.07833939]
[1769992588792,0.01342642,2320.1,2318.8,1.07813322]
[1769992588994,0.01342642,2320.1,2318.7,4.31257547]
[1769992588995,0.01342642,2319.9,2318.7,1.07815472]
[1769992589199,1.09115198,2319.7,2318.7,0.53912416]
[1769992589396,0.01342642,2319.6,2317.7,0.001]
[1769992589590,1.07772556,2319.7,2318.7,1.07818495]
[1769992590002,1.07772556,2319.7,2318.3,4.31347147]
[1769992590204,1.07772556,2319.7,2318.7,1.07818396]
[1769992590603,1.07772556,2319.7,2318.7,1.07818756]
[1769992590907,1.07772556,2319.7,2318.6,1.07821335]
[1769992591113,2.05047385,2319.7,2318.6,1.07821335]
[1769992591433,2.05047385,2319.7,2318.0,17.18410804]
[1769992591607,1.07772556,2319.7,2318.0,17.18410804]
[1769992592006,1.07767911,2319.8,2318.1,12.88348314]
[1769992592313,0.01342642,2319.7,2318.0,4.31405132]
[1769992592623,0.01342642,2319.5,2318.0,4.31405132]
[1769992592935,0.01342642,2319.3,2318.0,1.07851596]
[1769992593136,0.01342642,2318.9,2317.7,0.001]
[1769992593339,0.01342642,2318.5,2317.7,0.001]
[1769992593536,0.01342642,2318.5,2317.0,1.07897458]
[1769992593537,0.01342642,2318.1,2317.0,1.07897458]
[1769992593739,0.01342642,2318.1,2317.1,1.07893228]
[1769992593905,0.01342642,2318.1,2317.1,0.53949302]
[1769992593906,0.01342642,2318.0,2317.1,0.53949302]
[1769992594103,0.01342642,2317.9,2317.0,1.07895043]
[1769992594306,0.01342642,2318.1,2316.9,1.07899316]
[1769992594540,0.904,2318.4,2317.1,1.07892857]
[1769992594740,0.904,2318.4,2317.0,1.07895022]
[1769992594957,0.904,2318.3,2317.1,1.07892381]
[1769992595164,0.904,2318.3,2317.2,0.53946633]
[1769992595548,1.07842291,2318.2,2317.2,0.53946633]
[1769992595753,1.07842291,2318.2,2317.2,1.61834662]
[1769992595952,1.98241088,2318.3,2317.2,1.61834662]
[1769992596828,1.98241088,2318.3,2317.2,1.07888029]
[1769992597024,1.98241088,2318.3,2316.7,0.01342642]
[1769992597341,0.01342642,2317.7,2316.5,0.001]
[1769992597532,0.01342642,2317.2,2316.3,0.001]
[1769992597867,0.01342642,2316.7,2315.6,0.001]
[1769992598076,0.01342642,2316.6,2315.6,0.001]
[1769992598283,0.01342642,2316.6,2315.6,1.08062979]
[1769992598431,0.904,2317.1,2316.1,1.07939917]
[1769992598633,1.0787952,2317.4,2316.2,1.0793482]
[1769992598833,2.82399143,2317.3,2316.2,1.61902467]
[1769992599556,1.07888831,2317.2,2315.9,1.07946665]
[1769992599754,0.01342642,2317.0,2315.8,1.07951385]
[1769992599935,0.01342642,2316.7,2315.6,0.001]
[1769992600129,0.01342642,2316.6,2315.6,0.001]
[1769992600332,0.904,2316.5,2315.9,1.07948412]
[1769992600535,0.904,2316.5,2315.6,4.31947904]
[1769992600856,0.904,2316.5,2315.9,1.0794655]
[1769992601342,0.904,2316.5,2315.8,1.07951584]
[1769992601544,0.904,2316.5,2315.7,4.31833623]
[1769992601850,0.904,2316.7,2315.7,4.31833623]
[1769992602031,0.904,2316.7,2315.6,1.51264964]
[1769992602429,0.904,2316.7,2315.7,0.58312267]
[1769992602635,0.904,2316.7,2316.4,0.001]
[1769992602844,0.904,2316.7,2315.6,1.08063172]
[1769992603258,0.904,2316.7,2316.1,0.001]
[1769992603464,0.904,2316.7,2315.6,1.08063172]
[1769992603465,0.01342642,2316.6,2315.6,0.001]
[1769992603636,0.01342642,2316.3,2315.4,0.001]
[1769992603836,1.35569134,2316.3,2315.4,0.001]
[1769992604037,1.34226492,2316.3,2315.4,0.001]
[1769992605263,1.07926092,2316.4,2315.4,0.001]
[1769992605463,1.98313396,2316.7,2315.4,0.001]
[1769992605862,0.01342642,2316.6,2315.4,0.001]
[1769992606178,0.904,2316.7,2315.4,0.001]
[1769992606373,0.904,2316.7,2315.4,0.01442642]
[1769992606533,0.904,2316.7,2315.4,1.50821949]
[1769992607165,1.98312338,2316.7,2315.4,1.50821949]
[1769992608648,0.904,2316.7,2315.5,1.07968041]
[1769992608851,0.904,2316.7,2315.5,14.907938]
[1769992609176,0.905,2317.2,2315.5,14.89451158]
[1769992609475,0.905,2317.2,2315.6,2.07080263]
[1769992609840,0.905,2317.2,2315.6,15.89906022]
[1769992610071,0.905,2317.2,2315.7,0.01342642]
[1769992610266,0.905,2317.2,2315.9,13.81483117]
[1769992610478,5.21910612,2318.0,2316.3,0.01342642]
[1769992610773,0.905,2318.0,2316.6,13.82825759]
[1769992611280,0.905,2318.0,2316.9,13.82825759]
[1769992611448,1.07958057,2318.1,2316.6,0.01342642]
[1769992611647,1.07958057,2318.1,2316.5,15.81247192]
[1769992611855,0.55277225,2318.0,2316.6,2.01427557]
[1769992612061,0.53934583,2318.0,2316.5,1.98421433]
[1769992612853,0.0011,2318.1,2316.7,13.81483117]
[1769992613472,0.0011,2318.1,2317.0,13.81483117]
[1769992613767,0.0011,2318.1,2316.9,0.01342642]
[1769992613768,1.07798697,2319.2,2317.5,0.01342642]
[1769992614392,1.07798697,2319.2,2317.4,13.81483117]
[1769992614393,1.09141339,2319.2,2317.4,13.81483117]
[1769992614987,5.23133911,2319.3,2317.6,14.06182789]
[1769992614988,1.98402027,2319.3,2317.6,14.06182789]
[1769992615280,1.98402027,2319.3,2317.7,2.4194003]
[1769992615857,1.98402027,2319.3,2317.7,1.5154003]
[1769992615858,0.01342642,2319.1,2317.7,1.5154003]
[1769992616057,0.01342642,2319.1,2317.5,1.07874865]
[1769992616058,13.04915433,2319.2,2317.5,1.07874865]
[1769992616258,0.01342642,2319.0,2317.5,1.07874865]
[1769992616459,13.06258075,2319.0,2317.5,1.07874865]
[1769992616987,0.01342642,2318.6,2317.1,1.07893186]
[1769992617174,0.01342642,2318.6,2316.5,1.07918467]
[1769992617175,0.11582642,2318.0,2316.5,1.07918467]
[1769992617372,0.01342642,2317.8,2316.5,1.61880395]
[1769992617572,0.01342642,2317.6,2316.5,0.53961928]
[1769992617778,0.91742642,2317.9,2317.0,1.07897507]
[1769992617779,0.904,2317.9,2317.0,1.07897507]
[1769992618086,0.904,2317.9,2317.1,1.07890669]
[1769992618286,0.904,2317.9,2317.0,1.07895743]
[1769992618482,0.904,2317.9,2317.1,1.07893185]
[1769992618655,13.04915433,2318.5,2317.1,1.07893185]
[1769992618860,2.20891543,2318.4,2317.2,0.53947952]
[1769992619098,1.07837639,2318.3,2317.2,1.61834619]
[1769992619582,6.52242101,2318.4,2317.2,1.61834619]
[1769992619583,3.28727124,2318.4,2317.2,1.61834619]
[1769992619784,0.904,2318.4,2317.2,1.61834619]
[1769992619959,1.9823374,2318.4,2317.2,1.61834619]
[1769992620359,1.07809737,2318.9,2317.2,1.61834619]
[1769992620591,0.904,2318.8,2317.2,1.61834619]
[1769992620768,0.904,2318.8,2317.2,1.63177261]
[1769992620968,1.09161678,2318.7,2317.4,1.0787952]
[1769992621165,1.07819036,2318.7,2317.4,1.0787952]
[1769992622367,1.98216844,2318.8,2317.4,1.0787952]
[1769992622767,1.98216844,2318.8,2317.4,1.09222162]
[1769992623569,0.01342642,2318.7,2317.4,1.0787952]
[1769992623905,0.01342642,2318.7,2316.6,1.07914555]
[1769992623906,0.01342642,2318.0,2316.6,1.07914555]
[1769992624192,0.904,2317.9,2317.1,1.0789338]
[1769992624501,0.904,2317.9,2316.1,0.01342642]
[1769992624671,0.904,2317.9,2316.7,4.31645932]
[1769992625004,0.904,2317.9,2317.2,1.07886229]
[1769992625163,0.904,2317.9,2317.2,1.07884175]
[1769992625701,1.98257044,2317.9,2316.7,1.07909066]
[1769992626085,1.98257044,2317.9,2316.9,1.07899284]
[1769992626390,0.62968204,2317.8,2316.8,1.07905254]
[1769992626761,13.04915433,2317.6,2316.2,4.31734344]
[1769992626961,13.04915433,2317.6,2315.6,3.15040727]
[1769992626962,0.11582642,2317.1,2315.6,3.15040727]
[1769992627185,4.31629834,2316.9,2315.5,0.001]
[1769992627399,0.62993264,2316.8,2315.5,0.001]
[1769992627695,1.98300856,2317.0,2315.5,0.001]
[1769992627900,0.01342642,2316.8,2315.5,0.001]
[1769992628104,0.01342642,2316.7,2315.5,0.001]
[1769992628412,0.01342642,2316.8,2315.5,0.001]
[1769992628762,1.99643498,2317.0,2315.5,0.001]
[1769992628963,0.6325622,2316.9,2315.5,0.001]
[1769992629165,4.43082102,2317.6,2315.5,0.001]
[1769992629360,0.904,2317.0,2315.6,0.01342642]
[1769992629698,0.904,2317.0,2315.8,0.01342642]
[1769992630303,0.904,2317.0,2315.9,0.01342642]
[1769992630602,4.32747195,2318.1,2315.9,0.01342642]
[1769992630603,1.07832988,2318.4,2316.5,0.01342642]
[1769992630807,0.904,2318.3,2316.5,0.01342642]
[1769992631118,1.53356494,2318.3,2316.7,0.01342642]
[1769992631323,0.0011,2318.1,2316.9,1.07902801]
[1769992631976,0.01452642,2318.1,2316.9,1.07902801]
[1769992632480,0.0011,2318.1,2316.9,1.07902801]
[1769992632893,0.01342642,2317.8,2315.8,0.01342642]
[1769992633111,0.0011,2318.1,2316.8,1.07904906]
[1769992633112,0.01452642,2318.1,2316.8,1.07904906]
[1769992633420,0.01452642,2318.1,2316.3,1.07930751]
[1769992633421,1.07851596,2318.0,2316.3,1.07930751]
[1769992633574,0.0011,2318.1,2316.5,0.24699672]
[1769992633775,0.0011,2318.1,2317.0,0.01342642]
[1769992634017,0.0011,2318.1,2317.1,0.01342642]
[1769992634174,0.0011,2318.3,2317.2,0.01342642]
[1769992634372,1.07949155,2318.3,2316.9,13.55924379]
[1769992634595,1.07949155,2318.3,2317.1,13.67507021]
[1769992634596,0.0011,2318.3,2317.1,13.67507021]
[1769992634800,0.904,2318.9,2317.6,0.01342642]
[1769992634991,1.07801079,2319.1,2317.7,0.01342642]
[1769992635200,0.0011,2319.2,2318.3,1.07837639]
[1769992636080,0.0011,2319.9,2318.6,0.01342642]
[1769992636280,1.0787338,2319.9,2318.6,0.01342642]
[1769992636474,0.0011,2319.9,2318.7,0.01342642]
[1769992636675,1.0787367,2319.9,2318.6,0.01342642]
[1769992636974,0.0011,2319.9,2318.9,0.01342642]
[1769992637178,0.0011,2320.1,2319.2,1.09138433]
[1769992637394,0.0011,2320.9,2319.6,0.01342642]
[1769992637601,0.0011,2320.9,2319.3,0.55509066]
[1769992637976,0.01342642,2320.8,2319.3,0.54166424]
[1769992638300,0.01342642,2320.7,2319.2,1.07795791]
[1769992638475,0.904,2320.6,2319.2,1.07795791]
[1769992638675,0.01342642,2320.4,2319.1,1.07800031]
[1769992638905,0.904,2320.6,2319.1,1.07800268]
[1769992639279,1.09078043,2320.5,2318.8,1.07814386]
[1769992639502,1.98666427,2320.4,2318.8,1.07814386]
[1769992639814,0.01342642,2320.3,2318.8,1.07814386]
[1769992640007,0.01342642,2319.9,2318.5,3.3729671]
[1769992640186,0.01342642,2319.7,2318.5,2.29471399]
[1769992640377,0.91742642,2319.6,2318.5,2.29471399]
[1769992640578,0.01342642,2319.5,2318.5,2.29471399]
[1769992640903,14.14152233,2319.5,2317.5,4.31496498]
[1769992641101,0.01342642,2319.3,2317.9,1.07853334]
[1769992641304,0.01342642,2319.2,2317.9,1.07853334]
[1769992641505,1.07800439,2319.1,2317.7,4.3145658]
[1769992642079,1.07800439,2319.1,2317.6,0.43283914]
[1769992642080,0.01342642,2318.7,2317.6,0.43283914]
[1769992642406,0.904,2318.6,2317.6,1.0786873]
[1769992642710,0.01342642,2318.5,2316.5,0.01342642]
[1769992642912,0.01342642,2318.2,2316.8,4.31627624]
[1769992643116,0.01342642,2317.9,2316.6,2.65576319]
[1769992643287,0.01342642,2317.8,2316.6,3.40714996]
[1769992643491,4.31439569,2317.9,2316.7,1.0790886]
[1769992644092,1.07846943,2318.1,2316.7,1.0790886]
[1769992644692,1.07826235,2318.6,2316.9,0.01342642]
[1769992644918,1.07826235,2318.6,2317.1,0.01342642]
[1769992645238,1.98220616,2318.7,2318.5,0.001]
[1769992645524,3.06797408,2318.7,2317.0,1.07898144]
[1769992645722,3.05454766,2318.7,2317.5,0.001]
[1769992646401,3.05453948,2318.7,2317.5,0.001]
[1769992646586,1.98220929,2318.7,2317.5,0.001]
[1769992646988,0.904,2318.7,2317.5,0.001]
[1769992647190,1.98220372,2318.7,2317.5,0.001]
[1769992647527,0.904,2318.7,2317.5,0.001]
[1769992647724,1.98181849,2319.5,2317.6,0.01342642]
[1769992648017,0.63065189,2319.4,2317.8,0.01342642]
[1769992648181,0.904,2319.5,2317.9,0.01342642]
[1769992648385,0.0011,2319.7,2318.1,13.57267021]
[1769992649014,1.07883757,2319.7,2317.8,0.2335703]
[1769992649219,0.01342642,2319.6,2317.7,0.01342642]
[1769992649381,1.09133785,2319.3,2317.7,1.07865556]
[1769992649585,0.01342642,2319.0,2317.7,1.07865556]
[1769992649891,0.01342642,2319.0,2317.5,0.001]
[1769992649892,0.01342642,2318.4,2317.5,0.001]
[1769992650090,0.01342642,2318.3,2317.5,0.001]
[1769992650503,1.09133785,2319.3,2317.6,1.07870159]
[1769992650797,0.01342642,2318.6,2317.5,0.001]
[1769992650998,0.11582642,2318.7,2317.5,0.001]
[1769992651177,1.46275632,2318.8,2317.6,1.07869863]
[1769992651392,1.4493299,2318.8,2317.6,1.07869863]
[1769992651626,1.4493299,2318.8,2317.5,0.001]
[1769992651627,1.07819036,2318.7,2317.5,0.001]
[1769992651795,0.6650911,2318.6,2317.5,0.001]
[1769992651992,0.01342642,2318.4,2317.5,0.001]
[1769992652198,0.65166468,2318.6,2317.5,0.001]
[1769992652395,1.4493299,2318.8,2317.5,0.001]
[1769992652723,1.98210247,2318.9,2317.5,0.001]
[1769992653027,0.904,2318.9,2317.5,0.001]
[1769992653213,1.98209978,2318.9,2317.5,0.001]
[1769992653617,0.904,2318.9,2317.5,0.001]
[1769992653925,0.904,2318.9,2317.7,0.01342642]
[1769992654123,1.98209841,2318.9,2317.6,0.01342642]
[1769992654330,0.62944879,2318.8,2317.5,0.01442642]
[1769992654827,0.62944879,2318.8,2317.5,0.001]
[1769992655002,0.64287521,2318.8,2317.5,0.001]
[1769992655197,0.01342642,2318.7,2317.5,0.001]
[1769992655528,0.01342642,2318.4,2317.5,0.001]
[1769992655708,1.07836111,2318.4,2317.5,0.001]
[1769992655909,0.54051071,2318.3,2317.5,0.001]
[1769992656228,0.55393713,2318.3,2317.5,0.001]
[1769992656428,0.01342642,2318.1,2316.7,1.07912116]
[1769992656721,0.904,2318.0,2316.7,1.07912116]
[1769992657608,1.07856249,2317.9,2316.7,1.07912116]
[1769992657931,0.01342642,2317.6,2316.6,1.57661532]
[1769992658234,11.79577466,2317.8,2316.5,1.07918878]
[1769992658235,0.01342642,2317.5,2316.5,1.07918878]
[1769992658436,0.01342642,2317.5,2316.5,0.001]
[1769992658619,0.01342642,2317.4,2315.7,0.001]
[1769992658929,0.01342642,2317.1,2316.0,1.07944173]
[1769992659230,0.01342642,2317.1,2315.7,0.001]
[1769992659231,0.01342642,2316.5,2315.7,0.001]
[1769992659603,1.07926092,2316.4,2315.7,0.001]
[1769992659803,0.54096745,2316.3,2315.4,0.001]
[1769992660004,0.01342642,2316.2,2315.4,0.001]
[1769992660308,0.904,2316.1,2315.4,0.001]
[1769992661008,0.54096745,2316.3,2315.4,0.001]
[1769992661328,0.904,2316.3,2315.4,0.001]
[1769992661828,1.07935411,2316.2,2315.4,0.001]
[1769992662000,5.22130193,2316.3,2315.4,0.001]
[1769992662001,1.98332887,2316.3,2315.4,0.001]
[1769992662202,1.98331925,2316.3,2315.4,0.001]
[1769992663635,1.98331925,2316.3,2315.3,0.001]
[1769992663636,0.01342642,2316.2,2315.3,0.001]
[1769992663810,1.07940071,2316.1,2315.3,0.001]
[1769992664828,1.09282713,2316.1,2315.3,0.001]
[1769992665251,1.07940071,2316.1,2315.3,0.001]
[1769992665604,1.98333555,2316.3,2315.3,0.001]
[1769992665805,3.04510615,2316.3,2315.3,0.001]
[1769992666048,0.01342642,2316.2,2315.3,0.001]
[1769992667358,0.01342642,2315.6,2314.6,0.001]
[1769992667520,0.905,2315.5,2314.6,0.001]
[1769992668027,1.07972704,2315.4,2314.6,0.001]
[1769992668231,0.01342642,2315.2,2313.6,4.32215468]
[1769992668430,0.01342642,2315.2,2313.9,1.08042349]
[1769992668431,0.01342642,2315.0,2313.9,1.08042349]
[1769992668618,0.01342642,2314.9,2313.9,1.08042349]
[1769992668818,0.01342642,2315.2,2313.9,1.62065091]
[1769992669016,0.01342642,2315.0,2313.9,1.62065176]
[1769992669220,0.01342642,2315.1,2313.9,1.08042434]
[1769992669532,0.01342642,2315.0,2313.9,1.08042434]
[1769992670162,1.09334002,2315.0,2313.5,4.32230202]
[1769992670453,0.01342642,2314.7,2313.4,1.08066049]
[1769992670663,0.905,2314.6,2313.4,2.05335494]
[1769992671461,0.905,2314.6,2314.3,0.001]
[1769992672252,0.63036352,2315.3,2314.3,0.001]
[1769992672454,1.07940071,2316.1,2314.3,0.001]
[1769992672651,0.905,2315.9,2314.3,0.001]
[1769992673160,0.91842642,2315.9,2314.3,0.001]